bitfinex/quotes_SOLUSD_20230113
["timestamp","ask_amount","ask_price","bid_price","bid_amount"]
[1673644861307,117.81978508,17.167,17.141,24.94339121]
[1673644861526,67.85059228,17.166,17.141,24.94339121]
[1673644861951,20.0,17.165,17.14,46.19]
[1673644862161,49.9691928,17.165,17.14,46.19]
[1673644862374,123.32124152,17.164,17.141,20.0]
[1673644862586,153.29043432,17.164,17.141,20.0]
[1673644862791,181.48909228,17.163,17.141,20.0]
[1673644863203,67.85059228,17.162,17.141,20.0]
[1673644863412,67.85059228,17.162,17.141,43.52890496]
[1673644863641,113.6385,17.163,17.141,43.52890496]
[1673644863830,113.6385,17.163,17.15,46.19]
[1673644864461,108.8356,17.169,17.15,46.19]
[1673644864675,108.8356,17.169,17.151,43.52890496]
[1673644865653,108.8356,17.169,17.151,20.0]
[1673644865964,20.0,17.168,17.15,46.19]
[1673644866895,40.0,17.168,17.15,46.19]
[1673644868261,108.8356,17.169,17.151,23.52890496]
[1673644868799,108.8356,17.169,17.152,20.0]
[1673644869204,108.8356,17.169,17.152,43.52890496]
[1673644869629,108.8356,17.169,17.152,20.0]
[1673644869836,108.8356,17.169,17.152,23.52890496]
[1673644870043,108.8356,17.169,17.153,20.0]
[1673644871309,108.8356,17.169,17.152,20.0]
[1673644871728,113.6385,17.172,17.152,43.52890496]
[1673644874352,119.8754,17.175,17.152,43.52890496]
[1673644874666,119.8754,17.175,17.16,46.19]
[1673644874982,119.8754,17.175,17.161,20.0]
[1673644877591,20.0,17.18,17.161,20.0]
[1673644878766,20.0,17.185,17.161,20.0]
[1673644878966,116.1071,17.18,17.161,20.0]
[1673644880022,116.1071,17.18,17.162,24.36467085]
[1673644880226,20.0,17.185,17.163,20.0]
[1673644880539,128.9492,17.185,17.163,20.0]
[1673644880867,128.9492,17.185,17.164,24.36467085]
[1673644881267,128.9492,17.185,17.161,20.0]
[1673644881483,128.9492,17.185,17.162,24.36467085]
[1673644881810,128.9492,17.185,17.163,20.0]
[1673644882118,128.9492,17.185,17.163,44.36467085]
[1673644882647,128.9492,17.185,17.163,20.0]
[1673644882848,128.9492,17.185,17.163,24.36467085]
[1673644883057,108.9492,17.185,17.164,20.0]
[1673644883471,108.9492,17.185,17.165,24.36467085]
[1673644883681,108.9492,17.185,17.166,20.0]
[1673644884324,108.9492,17.185,17.161,141.26137085]
[1673644884738,20.0,17.184,17.161,141.26137085]
[1673644886515,20.0,17.184,17.162,20.0]
[1673644886937,20.0,17.184,17.163,24.36467085]
[1673644887146,20.0,17.184,17.164,20.0]
[1673644887467,20.0,17.184,17.164,44.36467085]
[1673644887671,108.9492,17.185,17.164,44.36467085]
[1673644888969,108.9492,17.185,17.165,24.36467085]
[1673644889364,108.9492,17.185,17.17,46.19]
[1673644889583,108.9492,17.185,17.171,20.0]
[1673644889809,115.3978,17.19,17.171,20.0]
[1673644890004,228.8537,17.19,17.171,20.0]
[1673644890636,228.8537,17.19,17.171,44.36467085]
[1673644891070,20.0,17.196,17.18,46.19]
[1673644891279,22.1872695,17.205,17.18,46.19]
[1673644891280,133.4559,17.198,17.181,20.0]
[1673644891591,133.4559,17.198,17.182,3.10391976]
[1673644892120,113.4559,17.198,17.182,3.10391976]
[1673644893166,22.1872695,17.205,17.182,3.10391976]
[1673644893378,22.1872695,17.205,17.182,27.46859061]
[1673644893593,22.1872695,17.205,17.182,3.10391976]
[1673644893989,109.9343,17.204,17.182,3.10391976]
[1673644894323,109.9343,17.204,17.181,20.0]
[1673644894536,20.0,17.203,17.181,20.0]
[1673644895150,20.0,17.198,17.181,20.0]
[1673644898515,20.0,17.198,17.18,46.19]
[1673644899999,20.0,17.198,17.18,70.46467085]
[1673644900196,131.056,17.199,17.18,70.46467085]
[1673644900400,111.056,17.199,17.18,70.46467085]
[1673644900620,111.056,17.199,17.181,20.0]
[1673644901153,111.056,17.199,17.181,44.36467085]
[1673644901480,20.0,17.198,17.181,20.0]
[1673644901977,114.3861,17.197,17.181,20.0]
[1673644903573,114.3861,17.197,17.173,392.3]
[1673644903896,153.15478972,17.197,17.173,392.3]
[1673644904505,20.0,17.196,17.173,392.3]
[1673644904715,153.15478972,17.197,17.173,415.98089352]
[1673644904926,114.3861,17.197,17.173,415.98089352]
[1673644905462,114.3861,17.197,17.18,46.1]
[1673644905876,111.056,17.199,17.181,23.68089352]
[1673644906598,111.056,17.199,17.182,20.0]
[1673644907340,111.056,17.199,17.182,43.68089352]
[1673644908406,20.0,17.198,17.179,42.73654122]
[1673644908712,20.0,17.198,17.173,415.98089352]
[1673644908927,20.0,17.198,17.173,439.66178704]
[1673644909128,20.0,17.198,17.173,415.98089352]
[1673644909332,58.76868972,17.198,17.173,415.98089352]
[1673644909573,29.9691928,17.197,17.173,392.3]
[1673644909754,111.056,17.199,17.18,46.19]
[1673644910169,111.056,17.199,17.18,69.87089352]
[1673644911030,111.056,17.199,17.181,20.0]
[1673644911235,111.056,17.199,17.173,392.3]
[1673644911236,286.956,17.199,17.173,392.3]
[1673644911451,20.0,17.198,17.17,46.19]
[1673644911646,175.9,17.197,17.17,46.19]
[1673644911857,205.8691928,17.197,17.17,46.19]
[1673644912063,29.9691928,17.196,17.17,46.19]
[1673644912272,175.9,17.195,17.17,46.19]
[1673644912487,20.0,17.194,17.17,46.19]
[1673644912698,118.8389,17.193,17.17,46.19]
[1673644913133,20.0,17.192,17.171,20.0]
[1673644913530,45.78,17.19,17.17,46.19]
[1673644913879,45.78,17.19,17.16,165.7049]
[1673644913880,225.8691928,17.189,17.16,165.7049]
[1673644914053,225.8691928,17.189,17.16,46.19]
[1673644914277,175.9,17.187,17.16,46.19]
[1673644914487,17.5,17.186,17.16,46.19]
[1673644914911,29.9691928,17.185,17.16,46.19]
[1673644915126,20.0,17.184,17.161,20.0]
[1673644915556,205.8691928,17.183,17.161,20.0]
[1673644915775,315.1029928,17.183,17.161,20.0]
[1673644916199,20.0,17.182,17.161,20.0]
[1673644917020,108.4123,17.181,17.161,20.0]
[1673644918293,20.0,17.18,17.161,20.0]
[1673644919643,66.16,17.18,17.15,46.19]
[1673644919968,66.16,17.18,17.153,24.69684951]
[1673644919969,20.0,17.178,17.153,24.69684951]
[1673644920391,175.9,17.176,17.15,46.19]
[1673644920603,46.08,17.17,17.15,46.19]
[1673644922269,40.0,17.169,17.14,46.57]
[1673644922811,40.0,17.169,17.143,24.69684951]
[1673644924178,92.84582534,17.169,17.143,24.69684951]
[1673644924589,92.84582534,17.169,17.144,20.0]
[1673644924917,20.0,17.169,17.145,24.69684951]
[1673644925316,20.0,17.169,17.146,20.0]
[1673644925760,20.0,17.169,17.147,24.69684951]
[1673644926271,46.08,17.17,17.147,24.69684951]
[1673644926491,108.0816,17.172,17.15,46.19]
[1673644926696,108.0816,17.172,17.151,20.0]
[1673644926911,108.0816,17.172,17.151,44.69684951]
[1673644927120,108.0816,17.172,17.152,24.69684951]
[1673644927332,108.0816,17.172,17.153,20.0]
[1673644927740,45.79,17.17,17.153,24.69684951]
[1673644928064,20.0,17.169,17.14,46.57]
[1673644928274,20.0,17.169,17.141,24.69684951]
[1673644928487,40.0,17.169,17.141,24.69684951]
[1673644928700,20.0,17.169,17.141,24.69684951]
[1673644929033,40.0,17.169,17.141,24.69684951]
[1673644929222,20.0,17.169,17.142,20.0]
[1673644929435,40.0,17.169,17.142,20.0]
[1673644929635,20.0,17.169,17.143,24.69684951]
[1673644929845,40.0,17.169,17.143,24.69684951]
[1673644930288,20.0,17.169,17.143,24.69684951]
[1673644930601,40.0,17.169,17.143,24.69684951]
[1673644930811,20.0,17.169,17.143,24.69684951]
[1673644931004,40.0,17.169,17.143,24.69684951]
[1673644931335,20.0,17.169,17.143,24.69684951]
[1673644931548,6.71641,17.168,17.143,24.69684951]
[1673644931745,6.71641,17.168,17.144,20.0]
[1673644932075,6.71641,17.168,17.145,24.69684951]
[1673644932383,111.0882,17.167,17.146,20.0]
[1673644932597,20.0,17.166,17.144,20.0]
[1673644933033,20.0,17.166,17.142,20.0]
[1673644933232,20.0,17.166,17.145,24.69684951]
[1673644933635,20.0,17.166,17.146,20.0]
[1673644934071,111.0882,17.167,17.146,20.0]
[1673644934072,111.0882,17.167,17.146,44.69684951]
[1673644934472,286.9882,17.167,17.146,20.0]
[1673644934791,20.0,17.166,17.141,20.0]
[1673644935000,175.9,17.165,17.141,20.0]
[1673644935214,221.98,17.16,17.139,24.69684951]
[1673644935412,221.98,17.16,17.13,164.8794]
[1673644935413,175.9,17.158,17.13,164.8794]
[1673644935622,182.61641,17.158,17.13,189.57624951]
[1673644936039,20.0,17.155,17.13,189.57624951]
[1673644936254,117.5138,17.154,17.13,189.57624951]
[1673644936693,117.5138,17.154,17.13,164.8794]
[1673644936902,117.5138,17.154,17.131,24.69684951]
[1673644937833,46.16,17.15,17.12,45.96]
[1673644938050,133.9795,17.149,17.124,24.69684951]
[1673644938987,20.0,17.148,17.124,24.69684951]
[1673644939533,20.0,17.148,17.121,111.3267]
[1673644939534,227.55324258,17.147,17.121,111.3267]
[1673644939960,286.58645372,17.147,17.121,111.3267]
[1673644940270,20.0,17.146,17.12,45.96]
[1673644940486,20.0,17.146,17.121,20.0]
[1673644941226,110.2624,17.145,17.121,20.0]
[1673644941414,110.2624,17.145,17.122,24.69684951]
[1673644941626,110.2624,17.145,17.123,20.0]
[1673644941835,110.2624,17.145,17.124,17.0]
[1673644942043,110.2624,17.145,17.124,41.69684951]
[1673644942250,110.2624,17.145,17.125,44.69684951]
[1673644942588,110.2624,17.145,17.126,24.69684951]
[1673644942897,110.2624,17.145,17.127,17.0]
[1673644943310,110.2624,17.145,17.127,41.69684951]
[1673644943737,110.2624,17.145,17.128,20.0]
[1673644943944,6.71641,17.148,17.13,46.19]
[1673644944168,20.0,17.158,17.131,17.0]
[1673644944483,114.8744,17.153,17.131,61.69684951]
[1673644944795,114.8744,17.153,17.132,49.39369902]
[1673644944999,114.8744,17.153,17.132,24.69684951]
[1673644945197,114.8744,17.153,17.133,37.0]
[1673644945614,114.8744,17.153,17.134,24.69684951]
[1673644945950,114.8744,17.153,17.135,20.0]
[1673644946137,114.8744,17.153,17.136,17.0]
[1673644946561,20.0,17.152,17.136,17.0]
[1673644947944,20.0,17.152,17.133,20.0]
[1673644948144,20.0,17.152,17.131,20.0]
[1673644948677,221.69,17.15,17.12,45.96]
[1673644948990,40.0,17.149,17.125,24.69684951]
[1673644949837,40.0,17.149,17.126,17.0]
[1673644950359,40.0,17.149,17.127,24.69684951]
[1673644950788,20.0,17.149,17.127,24.69684951]
[1673644950984,20.0,17.149,17.128,17.0]
[1673644951195,20.0,17.149,17.127,24.69684951]
[1673644951934,114.8744,17.153,17.13,46.19]
[1673644952156,114.8744,17.153,17.131,20.0]
[1673644952345,114.8744,17.153,17.131,44.69684951]
[1673644952680,114.8744,17.153,17.132,41.69684951]
[1673644952888,114.8744,17.153,17.133,20.0]
[1673644953096,114.8744,17.153,17.133,44.69684951]
[1673644953302,114.8744,17.153,17.134,41.69684951]
[1673644953622,117.5138,17.154,17.135,20.0]
[1673644954020,20.0,17.153,17.135,20.0]
[1673644954250,20.0,17.153,17.131,20.0]
[1673644955195,117.5138,17.154,17.131,20.0]
[1673644956355,117.5138,17.154,17.132,17.0]
[1673644956553,117.5138,17.154,17.133,20.0]
[1673644956994,117.5138,17.154,17.134,17.0]
[1673644957188,117.5138,17.154,17.135,20.0]
[1673644957403,117.5138,17.154,17.136,17.0]
[1673644959078,116.087,17.157,17.136,17.0]
[1673644959286,116.087,17.157,17.137,44.69684951]
[1673644959500,116.087,17.157,17.14,46.19]
[1673644959714,116.087,17.157,17.141,20.0]
[1673644962339,109.9624,17.163,17.141,44.69684951]
[1673644962661,109.9624,17.163,17.15,46.19]
[1673644962876,109.9624,17.163,17.142,24.69684951]
[1673644963080,109.9624,17.163,17.143,20.0]
[1673644963296,109.9624,17.163,17.141,208.6793316]
[1673644963702,109.9624,17.163,17.141,153.90824951]
[1673644964879,109.9624,17.163,17.142,17.0]
[1673644965202,109.9624,17.163,17.143,44.69684951]
[1673644965402,109.9624,17.163,17.144,17.0]
[1673644965599,109.9624,17.163,17.144,41.69684951]
[1673644965936,109.9624,17.163,17.145,44.69684951]
[1673644966432,109.9624,17.163,17.145,20.0]
[1673644966644,109.9624,17.163,17.146,24.69684951]
[1673644967373,109.9624,17.163,17.142,20.0]
[1673644967799,20.0,17.162,17.142,20.0]
[1673644968008,20.0,17.162,17.142,44.69684951]
[1673644968851,20.0,17.162,17.143,17.0]
[1673644969271,109.9624,17.163,17.144,24.69684951]
[1673644969498,118.3553,17.167,17.15,46.19]
[1673644969693,117.8264,17.171,17.151,37.0]
[1673644969903,117.8264,17.171,17.151,61.69684951]
[1673644970108,117.8264,17.171,17.152,23.96882336]
[1673644970338,117.8264,17.171,17.153,20.0]
[1673644970530,117.8264,17.171,17.153,37.0]
[1673644970736,117.8264,17.171,17.154,23.96882336]
[1673644970947,117.8264,17.171,17.155,17.0]
[1673644971371,117.8264,17.171,17.155,40.96882336]
[1673644971706,36.38230233,17.176,17.155,40.96882336]
[1673644971902,20.0,17.179,17.16,46.1]
[1673644972119,139.1551,17.178,17.16,46.1]
[1673644972440,139.1551,17.178,17.16,70.06882336]
[1673644973158,119.1551,17.178,17.161,20.0]
[1673644973589,119.1551,17.178,17.162,23.96882336]
[1673644973786,119.1551,17.178,17.163,20.0]
[1673644974222,119.1551,17.178,17.164,23.96882336]
[1673644974439,20.0,17.183,17.164,23.96882336]
[1673644974650,20.0,17.183,17.165,20.0]
[1673644975078,20.0,17.183,17.165,43.96882336]
[1673644975693,108.6068,17.184,17.165,43.96882336]
[1673644976435,108.6068,17.184,17.166,17.0]
[1673644976646,108.6068,17.184,17.165,20.0]
[1673644976647,20.0,17.18,17.165,20.0]
[1673644976860,20.0,17.18,17.161,20.0]
[1673644977073,20.0,17.18,17.155,20.0]
[1673644977681,49.9691928,17.18,17.155,20.0]
[1673644978741,20.0,17.18,17.155,20.0]
[1673644978948,20.0,17.18,17.156,17.0]
[1673644979161,20.0,17.18,17.157,20.0]
[1673644979371,20.0,17.18,17.158,17.0]
[1673644979806,49.9691928,17.18,17.159,20.0]
[1673644980202,225.8691928,17.18,17.155,20.0]
[1673644980413,225.8691928,17.18,17.15,163.5018]
[1673644980414,20.0,17.18,17.16,46.19]
[1673644980640,20.0,17.18,17.161,20.0]
[1673644981052,65.78,17.18,17.161,20.0]
[1673644981374,65.78,17.18,17.161,43.96682999]
[1673644981985,20.0,17.18,17.161,43.96682999]
[1673644983792,20.0,17.18,17.162,17.0]
[1673644984005,20.0,17.18,17.163,20.0]
[1673644984198,20.0,17.18,17.163,43.96682999]
[1673644984409,20.0,17.18,17.164,17.0]
[1673644984624,20.0,17.18,17.165,20.0]
[1673644985263,20.0,17.18,17.164,20.0]
[1673644986947,20.0,17.18,17.165,17.0]
[1673644987138,20.0,17.18,17.164,20.0]
[1673644987347,20.0,17.18,17.163,20.0]
[1673644987348,130.28942846,17.18,17.163,20.0]
[1673644987665,20.0,17.179,17.157,23.96682999]
[1673644987994,54.53023566,17.179,17.157,23.96682999]
[1673644988185,84.49942846,17.179,17.157,23.96682999]
[1673644988398,54.53023566,17.179,17.157,23.96682999]
[1673644988633,20.0,17.178,17.157,23.96682999]
[1673644990845,133.2835,17.181,17.16,46.19]
[1673644991168,133.2835,17.181,17.161,20.0]
[1673644991373,133.2835,17.181,17.161,43.28809395]
[1673644991784,133.2835,17.181,17.162,23.28809395]
[1673644991994,133.2835,17.181,17.163,20.0]
[1673644992325,133.2835,17.181,17.164,23.28809395]
[1673644992736,133.2835,17.181,17.165,20.0]
[1673644993270,133.2835,17.181,17.162,20.0]
[1673644993485,20.0,17.18,17.162,20.0]
[1673644993691,20.0,17.18,17.162,43.28809395]
[1673644994104,65.78,17.18,17.162,20.0]
[1673644994297,225.8691928,17.179,17.152,20.0]
[1673644994512,20.0,17.178,17.156,23.28809395]
[1673644996622,29.9691928,17.177,17.15,163.5018]
[1673644996940,175.9,17.177,17.151,20.0]
[1673644997377,133.8645,17.176,17.151,20.0]
[1673644998200,133.8645,17.176,17.152,17.0]
[1673644998405,339.7336928,17.176,17.153,20.0]
[1673644998726,339.7336928,17.176,17.126,157.85648799]
[1673644998727,175.9,17.169,17.14,46.19]
[1673644998947,175.9,17.167,17.14,46.19]
[1673644999139,6.71641,17.166,17.14,46.19]
[1673644999466,20.0,17.165,17.14,46.19]
[1673645000107,20.0,17.165,17.141,23.28809395]
[1673645001149,195.9,17.165,17.141,23.28809395]
[1673645001360,195.9,17.165,17.14,46.19]
[1673645001361,232.51023566,17.165,17.14,46.19]
[1673645001577,232.51023566,17.165,17.141,20.0]
[1673645001578,46.16,17.16,17.141,20.0]
[1673645001799,138.1318,17.159,17.14,46.19]
[1673645002008,175.9,17.158,17.13,46.1]
[1673645002200,175.9,17.158,17.137,23.28809395]
[1673645002201,212.51023566,17.158,17.137,23.28809395]
[1673645002410,26.71641,17.157,17.13,46.1]
[1673645002641,6.71641,17.156,17.13,46.1]
[1673645002855,6.71641,17.156,17.131,23.28809395]
[1673645003567,175.9,17.155,17.132,20.0]
[1673645003776,175.9,17.155,17.13,69.38809395]
[1673645003777,20.0,17.154,17.13,69.38809395]
[1673645004005,305.8421,17.154,17.13,69.38809395]
[1673645004408,129.9421,17.154,17.13,69.38809395]
[1673645004624,109.9421,17.154,17.13,69.38809395]
[1673645005039,109.9421,17.154,17.131,23.28809395]
[1673645005356,109.9421,17.154,17.132,37.0]
[1673645005791,109.9421,17.154,17.133,23.28809395]
[1673645006321,109.9421,17.154,17.134,37.0]
[1673645006720,20.0,17.153,17.135,23.28809395]
[1673645006931,103.25398189,17.153,17.135,23.28809395]
[1673645007144,59.813609,17.153,17.136,20.0]
[1673645007351,83.25398189,17.152,17.136,20.0]
[1673645008202,81.942902,17.151,17.137,23.28809395]
[1673645008414,109.9421,17.154,17.137,23.28809395]
[1673645008736,109.9421,17.154,17.138,20.0]
[1673645009661,109.9421,17.154,17.14,46.1]
[1673645010082,109.9421,17.154,17.141,20.0]
[1673645010407,109.9421,17.154,17.14,46.1]
[1673645010847,138.1318,17.159,17.137,23.28809395]
[1673645011162,84.51449522,17.155,17.14,69.47809395]
[1673645011353,118.1318,17.159,17.141,20.0]
[1673645011800,46.16,17.17,17.142,23.28809395]
[1673645011984,117.4033,17.166,17.143,20.0]
[1673645012192,117.4033,17.166,17.143,82.60510686]
[1673645012398,117.4033,17.166,17.144,102.88954909]
[1673645012635,117.4033,17.166,17.145,62.59780385]
[1673645012826,117.4033,17.166,17.146,37.0]
[1673645013036,117.4033,17.166,17.147,62.59050253]
[1673645013246,117.4033,17.166,17.148,20.0]
[1673645013475,117.4033,17.166,17.149,79.58320293]
[1673645013666,117.4033,17.166,17.15,62.57955376]
[1673645014195,20.0,17.162,17.15,62.57955376]
[1673645014818,117.4033,17.166,17.15,62.57955376]
[1673645015032,117.4033,17.166,17.151,20.0]
[1673645015240,117.4033,17.166,17.152,62.5722567]
[1673645015450,117.4033,17.166,17.153,17.0]
[1673645015662,117.4033,17.166,17.154,82.56496135]
[1673645015884,117.4033,17.166,17.155,79.56131431]
[1673645016095,117.4033,17.166,17.156,62.55766769]
[1673645016729,20.0,17.17,17.157,17.0]
[1673645016945,134.4475,17.169,17.158,62.55037574]
[1673645017985,134.4475,17.169,17.154,20.0]
[1673645018197,134.4475,17.169,17.155,23.28809395]
[1673645018840,134.4475,17.169,17.156,17.0]
[1673645019035,20.0,17.169,17.156,17.0]
[1673645019251,20.0,17.169,17.151,20.0]
[1673645019451,114.4475,17.168,17.151,20.0]
[1673645020203,20.0,17.167,17.151,20.0]
[1673645021352,20.0,17.167,17.152,17.0]
[1673645021778,20.0,17.167,17.153,20.0]
[1673645022403,20.0,17.167,17.151,20.0]
[1673645022826,20.0,17.167,17.151,43.28809395]
[1673645023029,20.0,17.167,17.152,23.28809395]
[1673645023252,20.0,17.167,17.153,20.0]
[1673645023667,20.0,17.179,17.153,43.28809395]
[1673645023876,117.3135,17.177,17.153,43.28809395]
[1673645024110,20.0,17.176,17.153,43.28809395]
[1673645026077,20.0,17.171,17.153,43.28809395]
[1673645026291,20.0,17.171,17.154,17.0]
[1673645026838,20.0,17.171,17.154,40.28809395]
[1673645027255,20.0,17.171,17.154,17.0]
[1673645027671,20.0,17.171,17.153,20.0]
[1673645027872,20.0,17.171,17.151,20.0]
[1673645030179,221.98,17.17,17.15,46.1]
[1673645030502,46.08,17.17,17.151,17.0]
[1673645030709,109.3891,17.189,17.16,46.19]
[1673645030922,113.8756,17.181,17.161,17.0]
[1673645031121,113.8756,17.181,17.152,182.21376246]
[1673645031122,20.0,17.179,17.152,60.53544569]
[1673645031332,6.71641,17.178,17.15,46.1]
[1673645031855,6.71641,17.178,17.151,20.0]
[1673645032500,222.06,17.17,17.151,20.0]
[1673645032709,138.7391,17.169,17.141,133.7955]
[1673645033440,138.7391,17.169,17.142,17.0]
[1673645033655,138.7391,17.169,17.143,20.0]
[1673645033977,138.7391,17.169,17.15,46.1]
[1673645034397,118.7391,17.169,17.151,20.0]
[1673645035137,118.7391,17.169,17.152,17.0]
[1673645035350,118.7391,17.169,17.153,20.0]
[1673645035753,118.7391,17.169,17.154,17.0]
[1673645037236,6.71641,17.178,17.16,46.19]
[1673645037442,156.3937,17.19,17.17,46.19]
[1673645037443,110.3137,17.19,17.17,46.19]
[1673645037982,110.3137,17.19,17.171,37.0]
[1673645039347,20.0,17.189,17.171,37.0]
[1673645042384,195.9,17.189,17.163,392.3]
[1673645042586,26.71641,17.188,17.16,46.19]
[1673645042796,6.71641,17.187,17.16,46.19]
[1673645043008,26.71641,17.187,17.16,46.19]
[1673645043223,10.86463293,17.187,17.161,115.2125315]
[1673645043434,111.897,17.203,17.162,185.868482]
[1673645043654,111.897,17.203,17.18,46.19]
[1673645043960,20.0,17.202,17.18,46.19]
[1673645044163,20.0,17.202,17.181,20.0]
[1673645044378,45.79,17.2,17.176,57.34839801]
[1673645044581,45.79,17.2,17.172,392.3]
[1673645044789,20.0,17.198,17.173,20.0]
[1673645045216,20.0,17.198,17.172,392.3]
[1673645046375,20.0,17.198,17.172,399.01934]
[1673645046598,20.0,17.198,17.173,17.0]
[1673645047330,20.0,17.198,17.174,20.0]
[1673645047856,20.0,17.198,17.173,20.0]
[1673645048174,20.0,17.198,17.175,17.0]
[1673645048367,20.0,17.198,17.176,17.0]
[1673645049521,20.0,17.198,17.173,26.71895]
[1673645049732,46.08,17.19,17.173,20.0]
[1673645049954,119.809,17.189,17.173,20.0]
[1673645050164,119.809,17.189,17.171,20.0]
[1673645050903,20.0,17.188,17.171,20.0]
[1673645053640,154.1759,17.19,17.171,20.0]
[1673645053833,115.4659,17.203,17.18,230.81]
[1673645054160,115.4659,17.203,17.19,46.19]
[1673645054372,115.4659,17.203,17.191,37.0]
[1673645054780,58.26,17.204,17.191,37.0]
[1673645056666,58.26,17.204,17.192,6.71152]
[1673645057111,22.1872695,17.205,17.193,20.0]
[1673645057739,22.1872695,17.205,17.194,17.0]
[1673645058074,22.1872695,17.205,17.193,20.0]
[1673645059327,22.1872695,17.205,17.194,17.0]
[1673645061013,22.1872695,17.205,17.195,23.28809395]
[1673645061844,22.1872695,17.205,17.193,20.0]
[1673645062056,22.1872695,17.205,17.191,20.0]
[1673645063013,22.1872695,17.205,17.192,23.28809395]
[1673645063198,22.1872695,17.205,17.193,20.0]
[1673645063412,22.1872695,17.205,17.194,17.0]
[1673645063747,22.1872695,17.205,17.193,20.0]
[1673645064059,22.1872695,17.205,17.191,20.0]
[1673645065224,22.1872695,17.205,17.192,23.28809395]
[1673645065420,22.1872695,17.205,17.193,20.0]
[1673645067217,22.1872695,17.205,17.191,20.0]
[1673645067423,114.7073,17.204,17.191,20.0]
[1673645068178,20.0,17.203,17.191,20.0]
[1673645068396,20.0,17.203,17.182,62.46300471]
[1673645068908,20.0,17.203,17.181,23.28809395]
[1673645069440,65.03141773,17.203,17.181,23.28809395]
[1673645069627,95.00061053,17.203,17.18,43.24]
[1673645070049,95.00061053,17.203,17.181,20.0]
[1673645070281,95.00061053,17.203,17.178,20.0]
[1673645070472,65.03141773,17.203,17.178,20.0]
[1673645070686,114.7073,17.204,17.19,42.94]
[1673645070893,114.7073,17.204,17.191,20.0]
[1673645071317,22.1872695,17.205,17.192,17.0]
[1673645071754,22.1872695,17.205,17.192,40.28809395]
[1673645073633,11.1872695,17.205,17.193,3.65332753]
[1673645074047,11.1872695,17.205,17.193,23.28809395]
[1673645075328,11.1872695,17.205,17.191,20.0]
[1673645075737,11.1872695,17.205,17.192,23.28809395]
[1673645076563,20.0,17.204,17.18,42.69]
[1673645076785,130.3033,17.204,17.18,42.69]
[1673645077630,130.3033,17.204,17.181,26.66363591]
[1673645078044,130.3033,17.204,17.182,20.0]
[1673645078905,20.0,17.209,17.183,17.0]
[1673645079117,78.26,17.214,17.2,42.99]
[1673645079118,26.2398699,17.213,17.2,42.99]
[1673645079319,26.2398699,17.213,17.201,37.0]
[1673645079527,26.2398699,17.213,17.202,4.44562403]
[1673645079946,26.2398699,17.213,17.203,17.0]
[1673645080158,26.2398699,17.213,17.204,4.44562403]
[1673645080580,26.2398699,17.213,17.202,4.44562403]
[1673645081527,26.2398699,17.213,17.201,81.39338492]
[1673645081938,26.2398699,17.213,17.201,20.0]
[1673645082798,26.2398699,17.213,17.202,9.78021082]